bitfinex/quotes_BTCUSD_20250118
["timestamp","ask_amount","ask_price","bid_price","bid_amount"]
[1737230742871,0.1222316,104440.0,104430.0,0.94444853]
[1737230743323,0.1222316,104440.0,104430.0,1.15807295]
[1737230744422,0.2873647,104440.0,104430.0,1.05883214]
[1737230745691,0.28826329,104440.0,104430.0,1.05883214]
[1737230746104,0.12313019,104440.0,104430.0,1.05883214]
[1737230746261,0.28826329,104440.0,104430.0,1.05883214]
[1737230747002,0.28826329,104440.0,104430.0,0.84520772]
[1737230747763,0.35764839,104440.0,104430.0,0.72534457]
[1737230748179,0.35764839,104440.0,104430.0,0.71550094]
[1737230748578,0.35764839,104440.0,104430.0,0.54460141]
[1737230748901,0.35764839,104440.0,104430.0,0.22090141]
[1737230749311,0.35764839,104440.0,104430.0,0.00622813]
[1737230756815,0.28826329,104440.0,104430.0,0.00622813]
[1737230757008,0.35764839,104440.0,104430.0,0.00622813]
[1737230757919,0.35764839,104440.0,104430.0,0.00665603]
[1737230759561,0.21335819,104440.0,104430.0,0.10241303]
[1737230759733,0.19251529,104440.0,104430.0,0.10241303]
[1737230760645,0.08701859,104440.0,104430.0,0.10241303]
[1737230761197,0.15640369,104440.0,104430.0,0.10241303]
[1737230761765,0.15640369,104440.0,104430.0,0.18828234]
[1737230762771,0.08149859,104440.0,104430.0,0.18828234]
[1737230762973,0.08701859,104440.0,104430.0,0.18828234]
[1737230763803,0.08701859,104440.0,104430.0,0.19771015]
[1737230765044,0.08701859,104440.0,104430.0,0.32651412]
[1737230769150,0.18276659,104440.0,104430.0,0.32651412]
[1737230769508,0.25215169,104440.0,104430.0,0.32651412]
[1737230773260,0.25215169,104440.0,104430.0,0.24064481]
[1737230773480,0.32153679,104440.0,104430.0,0.00665603]
[1737230773670,0.176257,104430.0,104420.0,1.01866023]
[1737230773909,0.2456421,104430.0,104420.0,1.01866023]
[1737230774081,0.2456421,104430.0,104420.0,0.93135339]
[1737230774285,0.2456421,104430.0,104420.0,0.71772897]
[1737230774907,0.2456421,104430.0,104420.0,0.41802547]
[1737230775111,0.2918421,104430.0,104420.0,0.41802547]
[1737230775611,0.39108291,104430.0,104420.0,0.33215616]
[1737230775842,0.3612272,104430.0,104420.0,0.00845616]
[1737230776640,0.176267,104420.0,104410.0,0.06941129]
[1737230776835,0.3150372,104420.0,104410.0,0.06941129]
[1737230777057,0.0805,104410.0,104400.0,0.58748765]
[1737230777265,0.2511811,104410.0,104400.0,0.39591765]
[1737230777639,0.2511811,104410.0,104400.0,0.00043615]
[1737230778823,0.095785,104400.0,104390.0,0.40605712]
[1737230778994,0.2456701,104400.0,104390.0,0.40615324]
[1737230779177,0.2456701,104400.0,104390.0,0.11124932]
[1737230779726,0.3612552,104400.0,104390.0,9.612e-05]
[1737230779918,0.3612552,104400.0,104380.0,0.57079539]
[1737230780200,0.08064393,104400.0,104390.0,0.095794]
[1737230780527,0.08064393,104400.0,104390.0,0.07915357]
[1737230781699,0.00014393,104400.0,104390.0,0.07915357]
[1737230782365,0.00014393,104400.0,104390.0,0.07958147]
[1737230782753,0.00014393,104400.0,104390.0,0.20278013]
[1737230782963,0.00566393,104400.0,104390.0,0.25088013]
[1737230783147,0.00566393,104400.0,104390.0,0.24992228]
[1737230784384,0.00566393,104400.0,104390.0,0.25779237]
[1737230787409,0.00566393,104400.0,104390.0,0.40779237]
[1737230787610,0.00566393,104400.0,104390.0,0.48729237]
[1737230788548,0.00566393,104400.0,104390.0,0.40260641]
[1737230789048,0.00566393,104400.0,104390.0,0.49840041]
[1737230789184,0.00566393,104400.0,104390.0,0.41890041]
[1737230789400,0.00566393,104400.0,104390.0,0.23398656]
[1737230791386,0.00566393,104400.0,104390.0,0.21179932]
[1737230791597,0.00566393,104400.0,104390.0,0.16812502]
[1737230791851,0.00566393,104400.0,104390.0,0.01817986]
[1737230792049,0.00566393,104400.0,104390.0,0.06974855]
[1737230792273,0.00566393,104400.0,104390.0,0.08498278]
[1737230792494,0.00566393,104400.0,104380.0,1.38929789]
[1737230792665,0.00566393,104400.0,104390.0,0.07863297]
[1737230792877,0.00566393,104400.0,104390.0,0.0569663]
[1737230793083,0.00566393,104400.0,104390.0,0.08470038]
[1737230793428,0.00566393,104400.0,104390.0,0.08418647]
[1737230793928,0.00566393,104400.0,104390.0,0.23418647]
[1737230794124,0.00566393,104400.0,104390.0,0.2512548]
[1737230794988,0.00566393,104400.0,104390.0,0.1567098]
[1737230795315,0.00566393,104400.0,104390.0,0.1037746]
[1737230795440,0.00566393,104400.0,104390.0,0.08667457]
[1737230797448,0.00566393,104400.0,104390.0,0.23667457]
[1737230798006,0.00566393,104400.0,104390.0,0.41511538]
[1737230798212,0.00014393,104400.0,104390.0,0.41511538]
[1737230798490,0.00566393,104400.0,104390.0,0.41511538]
[1737230798872,0.00014393,104400.0,104390.0,0.58912587]
[1737230799636,0.00014393,104400.0,104390.0,1.10214459]
[1737230800011,0.00014393,104400.0,104390.0,1.20214459]
[1737230800353,0.00014393,104400.0,104390.0,1.07364982]
[1737230801679,0.00014393,104400.0,104390.0,1.09257991]
[1737230803270,0.00014393,104400.0,104390.0,0.98676942]
[1737230804416,0.00014393,104400.0,104390.0,0.88676942]
[1737230804795,0.00014393,104400.0,104390.0,0.88640065]
[1737230804969,0.00014393,104400.0,104390.0,0.71550112]
[1737230805309,0.00014393,104400.0,104390.0,0.74527169]
[1737230806127,0.00014393,104400.0,104390.0,0.74569979]
[1737230806361,0.00014393,104400.0,104390.0,0.7891899]
[1737230806505,0.00104294,104400.0,104390.0,0.7891899]
[1737230810696,0.00104294,104400.0,104390.0,0.6647899]
[1737230811309,0.00104294,104400.0,104390.0,0.63501933]
[1737230811878,0.00104294,104400.0,104390.0,0.76298605]
[1737230813462,0.00104294,104400.0,104390.0,0.59183883]
[1737230814246,0.00104294,104400.0,104390.0,0.62158383]
[1737230815208,0.00104294,104400.0,104390.0,0.87869836]
[1737230817154,0.00104294,104400.0,104390.0,0.66476433]
[1737230826801,0.00104294,104400.0,104390.0,0.73418106]
[1737230827007,0.00104294,104400.0,104390.0,0.66476433]
[1737230827553,0.00104294,104400.0,104390.0,0.83418106]
[1737230827979,0.00104294,104400.0,104390.0,0.91738106]
[1737230829068,0.00104294,104400.0,104390.0,1.03965855]
[1737230836527,0.00104294,104400.0,104390.0,1.13965855]
[1737230837683,0.00104294,104400.0,104390.0,0.76026653]
[1737230838063,0.00104294,104400.0,104390.0,0.75835313]
[1737230840279,0.00104294,104400.0,104390.0,0.6889364]
[1737230840482,0.00104294,104400.0,104390.0,0.75835313]
[1737230840684,0.00104294,104400.0,104390.0,0.67515313]
[1737230841840,0.00104294,104400.0,104390.0,1.05483429]
[1737230842042,0.00104294,104400.0,104390.0,0.78541756]
[1737230842246,0.08124294,104400.0,104390.0,0.88541756]
[1737230842562,0.08124294,104400.0,104390.0,0.76241756]
[1737230842807,0.08124294,104400.0,104390.0,0.78541756]
[1737230842973,0.08124294,104400.0,104390.0,0.76241756]
[1737230843352,0.08124294,104400.0,104390.0,0.78541756]
[1737230844241,0.08124294,104400.0,104390.0,0.76648747]
[1737230846919,0.08124294,104400.0,104390.0,1.06718747]
[1737230851103,0.08124294,104400.0,104390.0,1.1596042]
[1737230851303,0.00104294,104400.0,104390.0,1.2596042]
[1737230852002,0.00104294,104400.0,104390.0,1.3596042]
[1737230852878,0.00104294,104400.0,104390.0,0.97992304]
[1737230856782,0.00104294,104400.0,104390.0,1.52852304]
[1737230860046,0.00104294,104400.0,104390.0,1.45910631]
[1737230860250,0.00104294,104400.0,104390.0,1.52852304]
[1737230861276,0.00104294,104400.0,104390.0,1.90828036]
[1737230861422,0.00104294,104400.0,104390.0,1.80828036]
[1737230862264,0.00104294,104400.0,104390.0,0.93598036]
[1737230867027,0.00104294,104400.0,104390.0,0.86656363]
[1737230867239,0.00104294,104400.0,104390.0,0.93598036]
[1737230867807,0.00104294,104400.0,104390.0,0.55622304]
[1737230869600,0.00104294,104400.0,104390.0,0.65622304]
[1737230870640,0.00104294,104400.0,104390.0,0.72563977]
[1737230871663,0.0784,104410.0,104400.0,1.37991846]
[1737230871909,0.07845014,104410.0,104400.0,1.50890427]
[1737230872089,5.014e-05,104410.0,104400.0,1.51451849]
[1737230872950,5.014e-05,104410.0,104400.0,1.89397799]
[1737230873952,5.014e-05,104410.0,104400.0,1.12167799]
[1737230874941,5.014e-05,104410.0,104400.0,0.74221849]
[1737230876110,5.014e-05,104410.0,104400.0,0.76181842]
[1737230876730,5.014e-05,104410.0,104400.0,0.62298496]
[1737230876927,5.014e-05,104410.0,104400.0,0.76181842]
[1737230877468,5.014e-05,104410.0,104400.0,1.14118497]
[1737230879017,5.014e-05,104410.0,104400.0,1.15088746]
[1737230881340,5.014e-05,104410.0,104400.0,1.05088746]
[1737230881590,5.014e-05,104410.0,104400.0,1.15088746]
[1737230885122,5.014e-05,104410.0,104400.0,1.05088746]
[1737230885335,5.014e-05,104410.0,104400.0,1.15088746]
[1737230885935,5.014e-05,104410.0,104400.0,1.08147073]
[1737230886344,5.014e-05,104410.0,104400.0,1.15088746]
[1737230887376,5.014e-05,104410.0,104400.0,1.15131546]
[1737230887578,0.00094895,104410.0,104400.0,1.15131546]
[1737230888170,0.1298,104420.0,104410.0,0.218776]
[1737230888383,0.1298,104420.0,104410.0,0.41717854]
[1737230888599,0.1298,104420.0,104410.0,0.42276888]
[1737230889437,0.1298,104420.0,104410.0,0.67953635]
[1737230889556,0.1298,104420.0,104410.0,1.55183635]
[1737230895599,0.1298,104420.0,104410.0,0.67953635]
[1737230897899,0.1298,104420.0,104410.0,1.0589029]
[1737230898958,0.1298,104420.0,104410.0,1.2089029]
[1737230899396,0.1298,104420.0,104410.0,1.2093309]
[1737230900100,0.08279881,104420.0,104410.0,1.2093309]
[1737230900728,0.08279881,104420.0,104410.0,0.95256343]
[1737230910702,0.08279881,104420.0,104410.0,0.57319688]
[1737230911918,0.08279881,104420.0,104410.0,0.95238374]
[1737230914767,0.00089881,104420.0,104410.0,0.95238374]
[1737230915242,0.12729859,104430.0,104420.0,0.218767]
[1737230915372,0.12739463,104430.0,104420.0,0.56716954]
[1737230915577,0.12739463,104430.0,104420.0,0.57273727]
[1737230916149,0.07829463,104430.0,104420.0,1.02134086]
[1737230917592,0.07829463,104430.0,104420.0,0.95192413]
[1737230919181,0.3833279,104470.0,104440.0,1.341048]
[1737230919182,0.0469279,104470.0,104440.0,1.341048]
[1737230919441,0.0687042,104460.0,104450.0,0.53739654]
[1737230919638,0.0687042,104460.0,104450.0,0.75860754]
[1737230919851,0.0687042,104460.0,104450.0,0.76417234]
[1737230920468,0.0687042,104460.0,104450.0,1.1429048]
[1737230921893,0.0687042,104460.0,104450.0,1.0203295]
[1737230922559,0.0687042,104460.0,104450.0,1.8926295]
[1737230923513,0.0687042,104460.0,104450.0,1.8628845]
[1737230923751,0.0687042,104460.0,104450.0,1.8398845]
[1737230923977,0.0687042,104460.0,104450.0,1.85922647]
[1737230924390,0.0691321,104460.0,104450.0,1.85922647]
[1737230927263,0.0691321,104460.0,104450.0,2.07238453]
[1737230928002,0.0691321,104460.0,104450.0,1.81622737]
[1737230930417,0.0691321,104460.0,104450.0,1.82568471]
[1737230931178,0.0691321,104460.0,104450.0,1.99605524]
[1737230936285,0.0691321,104460.0,104450.0,1.99695341]
[1737230937612,0.0691321,104460.0,104450.0,1.99868851]
[1737230939098,0.0691321,104460.0,104450.0,2.12639872]
[1737230939878,0.0691321,104460.0,104450.0,1.99868851]
[1737230940306,0.1183321,104460.0,104450.0,1.82927178]
[1737230940670,0.1183321,104460.0,104450.0,1.89868851]
[1737230941517,0.1183321,104460.0,104450.0,1.89842595]
[1737230943393,0.1183321,104460.0,104450.0,1.82900922]
[1737230943573,0.1183321,104460.0,104450.0,1.89842595]
[1737230945328,0.1183321,104460.0,104450.0,2.11158401]
[1737230951481,0.1183321,104460.0,104450.0,2.05609628]
[1737230955474,0.1183321,104460.0,104450.0,1.92835898]
[1737230956376,0.09306206,104460.0,104450.0,2.02835898]
[1737230956509,0.0004279,104460.0,104450.0,2.02835898]
[1737230957255,0.0004279,104460.0,104450.0,1.90098755]
[1737230959946,0.0771279,104460.0,104450.0,1.73157082]
[1737230960149,0.0771279,104460.0,104450.0,1.80098755]
[1737230960349,0.1261279,104460.0,104450.0,1.73157082]
[1737230960742,0.1261279,104460.0,104450.0,1.71222885]
[1737230961585,0.1261279,104460.0,104450.0,1.68255838]
[1737230962008,0.1261279,104460.0,104450.0,1.75197511]
[1737230962529,0.1261279,104460.0,104450.0,1.71225745]
[1737230962734,0.1261279,104460.0,104450.0,1.66967454]
[1737230963640,0.1261279,104460.0,104450.0,1.71225745]
[1737230964281,0.1261279,104460.0,104450.0,1.68255838]
[1737230968683,0.19674127,104460.0,104450.0,0.84325157]
[1737230968888,0.29247127,104460.0,104450.0,0.84325157]
[1737230969250,0.29127463,104460.0,104450.0,0.84325157]
[1737230969572,0.1261279,104460.0,104450.0,1.10019899]
[1737230970073,0.1261279,104460.0,104450.0,1.18570643]
[1737230970705,0.1261279,104460.0,104450.0,0.97191285]
[1737230972025,0.19554463,104460.0,104450.0,0.97191285]
[1737230972235,0.29127463,104460.0,104450.0,0.97191285]
[1737230973817,0.19554463,104460.0,104450.0,0.80087799]
[1737230974155,0.29247131,104460.0,104450.0,0.80087799]
[1737230974361,0.29127463,104460.0,104450.0,0.80087799]
[1737230974661,0.19554463,104460.0,104450.0,0.80087799]
[1737230975096,0.29127463,104460.0,104450.0,0.80087799]
[1737230975301,0.19554463,104460.0,104450.0,0.80087799]
[1737230975508,0.29127463,104460.0,104450.0,0.80087799]
[1737230976389,0.19554463,104460.0,104450.0,0.80087799]
[1737230977909,0.1261279,104460.0,104450.0,0.80087799]
[1737230982824,0.1316479,104460.0,104450.0,0.80087799]
[1737230989343,0.1261279,104460.0,104450.0,0.9001188]
[1737230989563,0.1316479,104460.0,104450.0,0.9001188]
[1737230990005,0.0004279,104460.0,104450.0,0.96953553]
[1737230990219,0.0004279,104460.0,104450.0,0.9001188]
[1737230990438,0.0004279,104460.0,104450.0,0.96953553]
[1737230990656,0.0004279,104460.0,104450.0,1.26885653]
[1737230990957,0.0004279,104460.0,104450.0,1.34885653]
[1737230991137,0.0004279,104460.0,104450.0,1.89745653]
[1737230991351,0.0004279,104460.0,104450.0,1.59814553]
[1737230992092,0.0004279,104460.0,104450.0,1.64050911]
[1737230993671,0.0004279,104460.0,104450.0,1.57109238]
[1737230994250,0.0004279,104460.0,104450.0,1.59068462]
[1737230996190,0.0004279,104460.0,104450.0,1.62034711]
[1737230999086,0.0004279,104460.0,104450.0,1.54034711]
[1737230999294,0.0455279,104460.0,104450.0,1.54034711]
[1737230999479,0.1244279,104460.0,104450.0,1.51068462]
[1737230999979,0.1244279,104460.0,104450.0,1.72414684]
[1737231000797,0.1244279,104460.0,104450.0,1.7045546]
[1737231002474,0.1244279,104460.0,104450.0,1.6191972]
[1737231002853,0.0004279,104460.0,104450.0,1.86401393]
[1737231003986,0.0004279,104460.0,104450.0,1.7655676]
[1737231005539,0.0004279,104460.0,104450.0,2.14430006]
[1737231007286,0.0004279,104460.0,104450.0,2.1636221]
[1737231009618,0.0004279,104460.0,104450.0,1.78488964]
[1737231015059,0.0004279,104460.0,104450.0,1.70948964]
[1737231031295,0.0004279,104460.0,104450.0,1.64007291]
[1737231031507,0.0004279,104460.0,104450.0,1.70948964]
[1737231032225,0.0004279,104460.0,104450.0,2.0882221]
[1737231032930,2.79e-05,104460.0,104450.0,2.0882221]
[1737231033737,2.79e-05,104460.0,104450.0,1.83206494]
[1737231039538,2.79e-05,104460.0,104450.0,1.45333248]
[1737231041635,0.00091726,104470.0,104460.0,1.21803]
[1737231041778,0.00091726,104470.0,104460.0,1.41634603]
[1737231041990,0.00091726,104470.0,104460.0,1.42361021]
[1737231042385,0.00091726,104470.0,104460.0,1.80232731]
[1737231042806,0.07811726,104470.0,104460.0,1.73291058]
[1737231043238,0.07811726,104470.0,104460.0,1.80232731]
[1737231047177,0.00091726,104470.0,104460.0,1.80232731]
[1737231047917,0.00091726,104470.0,104460.0,1.87174404]
[1737231049598,0.00091726,104470.0,104460.0,1.80232731]
[1737231049820,0.00091726,104470.0,104460.0,1.87174404]
[1737231051804,0.00091726,104470.0,104460.0,1.87264221]
[1737231053133,0.1253,104480.0,104470.0,1.068021]
[1737231053311,0.12535013,104480.0,104470.0,1.26633703]
[1737231053509,0.12535013,104480.0,104470.0,1.27359806]
[1737231054298,0.12535013,104480.0,104470.0,1.52998218]
[1737231055496,0.12535013,104480.0,104470.0,1.42998218]
[1737231055702,0.12535013,104480.0,104470.0,1.40032369]
[1737231056055,0.12535013,104480.0,104470.0,1.50032369]
[1737231056945,0.12535013,104480.0,104470.0,1.40032369]
[1737231057486,0.12535013,104480.0,104470.0,1.33090696]
[1737231057902,0.12535013,104480.0,104470.0,1.34047179]
[1737231062100,0.12535013,104480.0,104470.0,1.55406208]
[1737231062908,0.12577803,104480.0,104470.0,1.55406208]
[1737231063143,0.12577803,104480.0,104470.0,1.29767796]
[1737231064785,0.12577803,104480.0,104470.0,1.40988852]
[1737231065604,0.12577803,104480.0,104470.0,1.34047179]
[1737231066977,0.13129803,104480.0,104470.0,1.34047179]
[1737231070531,0.13129803,104480.0,104470.0,1.37014915]
[1737231070943,0.20071476,104480.0,104470.0,1.37014915]
[1737231071146,0.13129803,104480.0,104470.0,1.34047179]
[1737231071302,0.13129803,104480.0,104470.0,1.4686144]
[1737231072163,0.13129803,104480.0,104470.0,1.59680091]
[1737231073188,0.13129803,104480.0,104470.0,1.4686144]
[1737231074373,0.20071476,104480.0,104470.0,1.4686144]
[1737231074571,0.13129803,104480.0,104470.0,1.4686144]
[1737231075213,0.13129803,104480.0,104470.0,0.9200144]
[1737231075512,0.13129803,104480.0,104470.0,0.92091299]
[1737231075719,0.20071476,104480.0,104470.0,0.92091299]
[1737231075928,0.3670399,104480.0,104470.0,0.50149199]
[1737231076134,0.36584349,104480.0,104470.0,0.40225118]
[1737231076568,0.36584349,104480.0,104470.0,0.55225118]
[1737231076767,0.36584349,104480.0,104470.0,0.40225118]
[1737231077275,0.36584349,104480.0,104470.0,0.10322358]
[1737231077476,0.36584349,104480.0,104470.0,0.09365875]
[1737231077620,0.36032349,104480.0,104470.0,0.09365875]
[1737231077816,0.36584349,104480.0,104470.0,0.09365875]
[1737231078020,0.36584349,104480.0,104470.0,0.00815962]
[1737231082105,0.36584349,104480.0,104470.0,0.35312143]
[1737231082106,0.12577803,104480.0,104470.0,0.35312143]
[1737231082305,0.13129803,104480.0,104470.0,0.35312143]
[1737231082504,0.00599803,104480.0,104470.0,0.97113816]
[1737231082809,0.00047803,104480.0,104470.0,1.29483816]
[1737231083240,0.00047803,104480.0,104470.0,1.22542143]
[1737231083414,0.00047803,104480.0,104470.0,1.73819686]
[1737231088558,0.07269662,104490.0,104480.0,0.15]
[1737231088768,0.07269662,104490.0,104480.0,0.35221698]
[1737231089369,0.05272,104490.0,104480.0,0.35221698]
[1737231090056,0.00552,104490.0,104480.0,0.56585398]
[1737231090260,0.00552,104490.0,104480.0,1.11445398]
[1737231090645,0.00552,104490.0,104480.0,0.98620528]
[1737231091747,0.00552,104490.0,104480.0,1.11445398]
[1737231092498,0.6471412,104500.0,104490.0,0.095702]
[1737231092703,0.6471913,104500.0,104490.0,0.19494281]
[1737231092903,0.6471913,104500.0,104490.0,0.20219796]
[1737231095293,0.7428843,104500.0,104490.0,0.20219796]
[1737231095455,0.6471913,104500.0,104490.0,0.20219796]
[1737231097003,0.7428843,104500.0,104490.0,0.20219796]
[1737231097196,0.88171776,104500.0,104490.0,0.00725515]
[1737231097518,0.81230103,104500.0,104490.0,0.00725515]
[1737231100053,0.81272883,104500.0,104490.0,0.00725515]
[1737231102516,0.88214556,104500.0,104490.0,0.00725515]
[1737231103502,0.81272883,104500.0,104490.0,0.00725515]
[1737231104033,0.88214556,104500.0,104490.0,0.00725515]
[1737231104451,0.98138637,104500.0,104490.0,0.00725515]
[1737231104891,0.88214556,104500.0,104490.0,0.00725515]
[1737231108238,0.81272883,104500.0,104490.0,0.00725515]
[1737231108448,0.88214556,104500.0,104490.0,0.00725515]
[1737231110184,0.81272883,104500.0,104490.0,0.00725515]
[1737231110390,0.7433121,104500.0,104490.0,0.00725515]
[1737231110569,0.81272883,104500.0,104490.0,0.00725515]
[1737231111316,0.81272883,104500.0,104490.0,0.10295715]
[1737231112326,0.81272883,104500.0,104490.0,0.10385553]
[1737231114364,0.7433121,104500.0,104490.0,0.10385553]
[1737231114582,0.81272883,104500.0,104490.0,0.10385553]
[1737231114789,0.71703583,104500.0,104490.0,0.10385553]
[1737231114953,0.81272883,104500.0,104490.0,0.10385553]
[1737231115982,0.5716191,104500.0,104490.0,0.20309634]
[1737231117537,0.5244191,104500.0,104490.0,0.20309634]
[1737231119836,0.68952883,104500.0,104490.0,0.20309634]
[1737231122959,0.88384556,104500.0,104490.0,0.00815353]
[1737231123364,0.81442883,104500.0,104490.0,0.00815353]
[1737231124550,0.88384556,104500.0,104490.0,0.00815353]
[1737231132011,1.1525031,104500.0,104490.0,0.00815353]
[1737231132130,1.2525031,104500.0,104490.0,0.00815353]
[1737231132355,1.1525031,104500.0,104490.0,0.00815353]
[1737231132742,1.0755031,104500.0,104490.0,0.00815353]
[1737231132938,1.59219432,104500.0,104490.0,0.00815353]
[1737231133139,1.72565923,104500.0,104490.0,0.00815353]
[1737231133390,1.87884524,104500.0,104490.0,0.00815353]
[1737231133627,0.219802,104490.0,104480.0,0.00089838]
[1737231133779,0.63198501,104490.0,104480.0,0.00089838]
[1737231133986,0.55297661,104490.0,104480.0,5.8e-07]
[1737231134308,0.492812,104480.0,104470.0,0.00089859]
[1737231134542,0.59777091,104480.0,104470.0,0.00089859]
[1737231134713,0.63199501,104480.0,104470.0,0.00089859]
[1737231135294,0.59777091,104480.0,104470.0,0.00089859]
[1737231135489,0.81295681,104480.0,104470.0,0.00089859]
[1737231135700,0.91219762,104480.0,104470.0,0.00089859]
[1737231136279,1.08420233,104480.0,104470.0,0.00089859]
[1737231137031,1.21312301,104480.0,104470.0,0.00089859]
[1737231137269,1.2226585,104480.0,104470.0,0.00089859]
[1737231138609,1.2493682,104480.0,104470.0,0.00089859]
[1737231138874,0.173,104470.0,104460.0,0.00089817]
[1737231139081,0.80945594,104470.0,104460.0,0.00089817]
[1737231139298,0.86919262,104470.0,104460.0,1.7e-07]
[1737231139621,0.80825882,104470.0,104460.0,1.7e-07]
[1737231140051,0.84248292,104470.0,104460.0,1.7e-07]
[1737231140252,1.14340831,104470.0,104460.0,1.7e-07]
[1737231140496,1.10918421,104470.0,104460.0,0.00682071]
[1737231140726,1.10918421,104470.0,104460.0,1.7e-07]
[1737231140975,1.10918421,104470.0,104450.0,0.00089817]
[1737231140976,0.39283,104460.0,104450.0,0.00089817]
[1737231141215,0.80274782,104460.0,104450.0,0.00089817]
[1737231141435,0.80274782,104460.0,104450.0,0.00771871]
[1737231141676,0.83697192,104460.0,104450.0,1.7e-07]
[1737231142170,0.80274782,104460.0,104450.0,1.7e-07]
[1737231142415,0.80274782,104460.0,104450.0,0.00634781]
[1737231142653,0.89466782,104460.0,104450.0,0.00050163]
[1737231143125,0.89466782,104460.0,104450.0,0.00634781]
[1737231143387,0.89466782,104460.0,104450.0,0.00050163]
[1737231143584,0.89466782,104460.0,104450.0,0.00634781]
[1737231143769,0.89466782,104460.0,104450.0,0.00050163]
[1737231143969,0.89466782,104460.0,104450.0,0.00641697]
[1737231144172,0.89466782,104460.0,104450.0,0.00050163]
[1737231144338,0.89466782,104460.0,104450.0,0.00641697]
[1737231144542,0.89466782,104460.0,104450.0,0.00050163]
[1737231144753,0.89466782,104460.0,104450.0,0.00641697]
[1737231144953,0.90419878,104460.0,104450.0,0.00050163]
[1737231145131,0.90419878,104460.0,104450.0,0.00641697]
[1737231145335,0.93842288,104460.0,104450.0,0.00050163]
[1737231145535,0.90419878,104460.0,104450.0,0.00641697]
[1737231145868,0.92324568,104460.0,104450.0,0.00641756]
[1737231148568,0.92876568,104460.0,104450.0,0.00641756]
[1737231152898,0.92324568,104460.0,104450.0,0.00641756]
[1737231153048,0.92876568,104460.0,104450.0,0.00641756]
[1737231154652,0.96708468,104460.0,104450.0,0.00641756]
[1737231159453,0.96798327,104460.0,104450.0,0.00641756]
[1737231167375,0.96482219,104460.0,104450.0,0.00641756]
[1737231169285,0.86558138,104460.0,104450.0,0.00641756]
[1737231170535,0.89980548,104460.0,104450.0,0.00641756]
[1737231171805,0.86558138,104460.0,104450.0,0.00641756]
[1737231174923,0.86558138,104460.0,104450.0,5.6e-07]
[1737231175143,0.89980548,104460.0,104450.0,8.2e-07]
[1737231175344,0.195757,104430.0,104420.0,0.0796]
[1737231175540,0.4405651,104430.0,104420.0,0.0796]
[1737231175751,0.095767,104420.0,104410.0,0.125428]
[1737231175957,0.43385789,104420.0,104410.0,0.078028]
[1737231177008,0.43385789,104420.0,104410.0,0.07807813]
[1737231178612,0.33385789,104420.0,104410.0,0.07807813]
[1737231179383,0.23461708,104420.0,104410.0,0.07807813]
[1737231180075,0.24013708,104420.0,104410.0,0.07807813]
[1737231181474,0.20709782,104420.0,104410.0,0.07807813]
[1737231181673,0.20829511,104420.0,104410.0,0.07807813]
[1737231182435,0.20829511,104420.0,104410.0,0.08320002]
[1737231182694,0.20709782,104420.0,104410.0,0.08320002]
[1737231183100,0.20157782,104420.0,104410.0,0.08320002]
[1737231183303,0.101287,104420.0,104410.0,0.22457602]
[1737231183864,0.101287,104420.0,104410.0,0.30996432]
[1737231184268,0.101287,104420.0,104410.0,0.31966032]
[1737231184485,0.101287,104420.0,104410.0,0.44790902]
[1737231187606,0.101287,104420.0,104410.0,0.31966032]
[1737231187936,0.101287,104420.0,104410.0,0.13849602]
[1737231188620,0.20709782,104420.0,104410.0,0.13849602]
[1737231188797,0.20829505,104420.0,104410.0,0.13849602]
[1737231189301,0.20829505,104420.0,104410.0,0.23427202]
[1737231189651,0.20829505,104420.0,104410.0,0.13849602]
[1737231190891,0.20277505,104420.0,104410.0,0.23427202]
[1737231191091,0.20829505,104420.0,104410.0,0.23427202]
[1737231191287,0.20829505,104420.0,104410.0,0.13849602]
[1737231195952,0.10248423,104420.0,104410.0,0.13849602]
[1737231196871,0.101287,104420.0,104410.0,0.13849602]
[1737231197594,0.101287,104420.0,104410.0,0.23427202]
[1737231197942,0.101287,104420.0,104410.0,0.13849602]
[1737231198493,0.101287,104420.0,104410.0,0.23427202]
[1737231198694,0.101287,104420.0,104410.0,0.13849602]
[1737231201059,0.101287,104420.0,104410.0,0.23427202]
[1737231201260,0.101287,104420.0,104410.0,0.13849602]
[1737231202356,0.095765,104430.0,104420.0,0.178567]
[1737231202752,0.101285,104430.0,104420.0,0.18368974]
[1737231203856,0.101285,104430.0,104420.0,0.26907804]
[1737231204060,0.17069091,104430.0,104420.0,0.19631104]
[1737231204263,0.171888,104430.0,104420.0,0.19631104]
[1737231204805,0.171888,104430.0,104420.0,0.09051104]
[1737231205450,0.171888,104430.0,104420.0,0.00512274]
[1737231218506,0.166368,104430.0,104420.0,0.00512274]
[1737231218708,0.17069091,104430.0,104420.0,0.00512274]
[1737231219035,0.101285,104430.0,104420.0,0.00555044]
[1737231219214,0.17069091,104430.0,104420.0,0.00555044]
[1737231221721,0.17188812,104430.0,104420.0,0.00555044]
[1737231225332,0.17188812,104430.0,104420.0,0.20101744]
[1737231227900,0.17188812,104430.0,104420.0,0.10525044]
[1737231228045,0.26818972,104430.0,104420.0,0.02855044]
[1737231228253,0.26699251,104430.0,104420.0,0.00555044]
[1737231228788,0.34729251,104430.0,104420.0,0.00555044]
[1737231229153,0.41669842,104430.0,104420.0,0.00555044]
[1737231229353,0.34729251,104430.0,104420.0,0.00555044]
[1737231230133,0.41669842,104430.0,104420.0,0.00555044]
[1737231230350,0.46509842,104430.0,104420.0,0.00555044]
[1737231230551,0.76433923,104430.0,104420.0,0.00555044]
[1737231231292,0.85053456,104430.0,104420.0,0.00555044]
[1737231232657,1.36664585,104430.0,104420.0,0.00555044]
[1737231233519,1.15145995,104430.0,104420.0,0.00555044]
[1737231237112,1.16127127,104430.0,104420.0,0.00555044]
[1737231237814,1.21127127,104430.0,104420.0,0.00555044]
[1737231238767,1.34026184,104430.0,104420.0,0.00555044]
[1737231239428,1.21134116,104430.0,104420.0,0.00555044]
[1737231241336,1.34056277,104430.0,104420.0,0.00555044]
[1737231247194,1.24056277,104430.0,104420.0,0.00555044]
[1737231247844,1.30996868,104430.0,104420.0,0.00555044]
[1737231248062,0.471976,104410.0,104400.0,0.000428]
[1737231248232,0.76000545,104410.0,104400.0,0.00052404]
[1737231248446,0.67943454,104410.0,104400.0,0.00607169]
[1737231248620,0.67943454,104410.0,104400.0,0.00052404]
[1737231248823,0.67943454,104410.0,104400.0,0.00607169]
[1737231249028,0.61002863,104410.0,104400.0,0.00052404]
[1737231249203,0.91125495,104410.0,104400.0,0.00608938]
[1737231250075,1.12644085,104410.0,104400.0,0.00608938]
[1737231250918,0.91125495,104410.0,104400.0,0.00608938]
[1737231251744,1.01049576,104410.0,104400.0,0.00608938]
[1737231252100,0.91125495,104410.0,104400.0,0.00608938]
[1737231253197,0.73925024,104410.0,104400.0,0.00608938]
[1737231254230,0.74881638,104410.0,104400.0,0.00608938]
[1737231255636,0.61959477,104410.0,104400.0,0.00608938]
[1737231261127,0.68626295,104410.0,104400.0,0.00608938]
[1737231261353,0.82431558,104410.0,104400.0,0.00608938]
[1737231262728,0.92431558,104410.0,104400.0,0.00608938]
[1737231263187,0.92521558,104410.0,104400.0,0.00608938]
[1737231263403,0.82431558,104410.0,104400.0,0.00608938]